bitfinex/quotes_SOLUSD_20250210
["timestamp","ask_amount","ask_price","bid_price","bid_amount"]
[1739145602713,0.03,200.68,200.65,14.91535155]
[1739145603010,0.03,200.68,200.67,1.0]
[1739145604595,0.03,200.68,200.67,15.91535155]
[1739145605504,0.03,200.68,200.67,16.91535155]
[1739145605813,0.03,200.68,200.67,30.32720008]
[1739145606317,0.03,200.78,200.77,15.91535155]
[1739145606688,0.03,200.78,200.77,29.32720008]
[1739145606904,0.03,200.78,200.77,30.32499084]
[1739145608406,0.03,200.78,200.77,35.81834195]
[1739145608593,0.03,200.78,200.77,41.24952353]
[1739145609143,0.03,200.78,200.77,16.66216231]
[1739145610702,0.03,200.78,200.77,30.32499084]
[1739145611017,0.03,200.86,200.81,1.0]
[1739145611198,0.03,200.86,200.81,15.91535155]
[1739145611713,0.03,200.89,200.88,1.0]
[1739145611923,7.8594,201.01,200.98,1.0]
[1739145612223,7.8594,201.01,200.96,1.0]
[1739145612224,14.91535155,200.99,200.96,1.0]
[1739145612395,13.66282853,201.0,200.91,1.0]
[1739145612596,13.66282853,200.97,200.89,1.0]
[1739145613015,13.66282853,200.97,200.87,1.0]
[1739145613016,13.66282853,200.95,200.87,1.0]
[1739145613394,13.66282853,200.95,200.78,1.97058386]
[1739145613395,13.66282853,200.95,200.92,1.0]
[1739145613722,14.91535155,200.95,200.92,1.0]
[1739145614106,14.91535155,200.94,200.92,1.0]
[1739145614521,28.32720008,200.95,200.92,1.0]
[1739145614735,28.32720008,200.95,200.94,1.0]
[1739145615329,7.8594,200.96,200.94,1.0]
[1739145615533,22.77475155,201.01,200.99,1.0]
[1739145615704,7.8594,201.01,200.99,1.0]
[1739145615904,14.91535155,201.0,200.99,1.0]
[1739145616299,22.77475155,201.01,200.99,1.0]
[1739145616503,7.8594,201.01,200.99,1.0]
[1739145616711,22.77475155,201.01,200.99,1.0]
[1739145617616,31.65203953,201.01,200.99,1.0]
[1739145618636,7.8594,201.01,200.99,1.0]
[1739145618817,23.79263953,201.0,200.97,1.0]
[1739145619140,37.20448806,201.0,200.99,1.0]
[1739145619431,7.8594,201.06,201.03,1.0]
[1739145619631,6.2588,201.06,201.05,1.0]
[1739145620313,13.41184853,201.05,201.03,1.0]
[1739145621206,7.8937,201.11,201.06,1.0]
[1739145621207,23.79263953,201.08,201.06,1.0]
[1739145621608,23.79263953,201.1,201.09,1.0]
[1739145621829,23.79263953,201.12,201.09,1.0]
[1739145622035,23.79263953,201.15,201.13,1.0]
[1739145622425,13.41184853,201.14,201.13,1.0]
[1739145622639,23.79263953,201.15,201.13,1.0]
[1739145623328,0.188,201.18,201.15,1.0]
[1739145623530,0.188,201.18,201.17,1.0]
[1739145623904,13.59984853,201.18,201.17,1.0]
[1739145624156,37.39248806,201.18,201.17,1.0]
[1739145624335,0.188,201.18,201.17,1.0]
[1739145626332,23.98063953,201.18,201.17,1.0]
[1739145626541,37.39248806,201.18,201.13,1.0]
[1739145626728,23.79263953,201.14,201.13,1.0]
[1739145627044,13.53733853,201.13,201.07,1.0]
[1739145627338,23.79263953,201.14,201.11,1.0]
[1739145627636,0.188,201.18,201.17,1.0]
[1739145627936,0.188,201.18,201.15,1.0]
[1739145628635,23.91812953,201.17,201.15,1.0]
[1739145629008,23.91812953,201.16,201.13,1.0]
[1739145629329,13.53733853,201.13,201.07,1.0]
[1739145629535,23.79263953,201.08,201.07,1.0]
[1739145629837,37.32997806,201.08,201.07,1.0]
[1739145630222,23.79263953,201.09,201.07,1.0]
[1739145630614,23.79263953,201.1,201.07,1.0]
[1739145630824,37.20448806,201.1,201.09,1.0]
[1739145631411,41.18258806,201.1,201.09,1.0]
[1739145631629,23.79263953,201.11,201.09,1.0]
[1739145631942,23.79263953,201.12,201.11,1.0]
[1739145632135,23.79263953,201.12,201.09,1.0]
[1739145632136,37.20448806,201.12,201.09,1.0]
[1739145632322,23.79263953,201.1,201.09,1.0]
[1739145632642,37.20448806,201.1,201.09,1.0]
[1739145633242,41.18258806,201.1,201.09,1.0]
[1739145634735,13.41184853,201.09,201.04,1.0]
[1739145634931,13.41184853,201.04,201.0,1.0]
[1739145635130,37.20448806,201.01,201.0,1.0]
[1739145635438,13.41184853,201.01,201.0,1.0]
[1739145635851,41.18438806,201.01,201.0,1.0]
[1739145636031,13.41184853,201.0,200.98,1.0]
[1739145636237,13.41184853,200.98,200.94,1.0]
[1739145636418,23.79263953,200.95,200.94,1.0]
[1739145636614,23.79263953,200.96,200.94,1.0]
[1739145636836,23.79263953,200.95,200.92,1.0]
[1739145637130,13.41184853,200.92,200.89,0.063]
[1739145637341,23.79263953,200.9,200.89,0.063]
[1739145637740,37.32997806,200.9,200.89,0.063]
[1739145638341,23.79263953,200.91,200.9,1.0]
[1739145639257,23.79263953,200.92,200.9,1.0]
[1739145639727,23.79263953,200.91,200.9,1.0]
[1739145639926,13.53733853,200.9,200.89,0.063]
[1739145640127,37.32997806,200.9,200.89,0.063]
[1739145641456,1.0,200.98,200.9,1.0]
[1739145641457,23.79263953,200.91,200.9,1.0]
[1739145642545,23.79263953,200.94,200.92,1.0]
[1739145642960,23.79263953,200.95,200.92,1.0]
[1739145643168,37.32997806,200.95,200.94,1.0]
[1739145643447,23.79263953,200.96,200.94,1.0]
[1739145643651,57.56915545,200.99,200.96,1.0]
[1739145644152,13.53733853,200.98,200.96,1.0]
[1739145644349,33.77651592,200.99,200.98,1.0]
[1739145645329,0.03,201.01,201.0,1.0]
[1739145645528,23.82263953,201.01,201.0,1.0]
[1739145646230,0.03,201.01,201.0,1.0]
[1739145646446,0.03,201.01,201.0,24.79263953]
[1739145646956,0.03,201.01,201.0,1.0]
[1739145650260,0.03,201.01,201.0,24.79263953]
[1739145650938,0.03,201.01,201.0,48.58527906]
[1739145651245,23.28220948,201.1,201.09,1.0]
[1739145654261,47.07484901,201.1,201.09,1.0]
[1739145654559,47.07484901,201.1,201.07,1.0]
[1739145654765,51.05294901,201.1,201.07,1.0]
[1739145654950,47.07484901,201.1,201.09,1.0]
[1739145655352,51.05294901,201.1,201.07,1.0]
[1739145655556,23.79263953,201.08,201.07,1.0]
[1739145656845,27.77113953,201.08,201.03,1.0]
[1739145657044,23.79263953,201.05,201.03,1.0]
[1739145657257,23.79263953,201.05,200.95,7.8093]
[1739145657258,23.79263953,201.04,201.01,1.0]
[1739145657465,23.79263953,201.02,200.99,1.0]
[1739145657663,23.79263953,201.0,200.97,1.0]
[1739145657961,23.79263953,200.98,200.97,1.0]
[1739145658272,23.79263953,201.03,201.02,1.0]
[1739145658648,53.74054901,201.1,201.02,1.0]
[1739145658649,23.79263953,201.04,201.02,1.0]
[1739145658942,43.79263953,201.07,201.06,1.0]
[1739145659163,43.79263953,201.07,201.04,1.0]
[1739145659343,23.79263953,201.05,201.02,1.0]
[1739145659535,23.79263953,201.03,201.02,1.0]
[1739145659862,23.79263953,201.04,201.02,1.0]
[1739145660570,23.79263953,201.05,201.04,1.0]
[1739145660740,13.41184853,201.04,201.0,1.0]
[1739145660939,3.979,201.06,201.0,1.0]
[1739145660940,23.79263953,201.01,201.0,1.0]
[1739145661237,23.79263953,201.01,200.98,1.0]
[1739145661434,23.79263953,200.99,200.98,1.0]
[1739145661656,23.79263953,200.99,200.94,1.0]
[1739145661842,23.79263953,200.95,200.91,1.0]
[1739145662044,23.79263953,200.92,200.91,1.0]
[1739145662641,3.9816,200.93,200.91,1.0]
[1739145662642,23.79263953,200.93,200.91,1.0]
[1739145662851,23.79263953,200.92,200.89,1.063]
[1739145663146,23.79263953,200.92,200.91,1.0]
[1739145663345,23.79263953,200.92,200.89,1.063]
[1739145663547,23.79263953,200.94,200.93,1.0]
[1739145664267,23.79263953,201.01,200.98,1.0]
[1739145664442,1.5259,201.06,200.98,1.0]
[1739145664443,23.79263953,201.06,201.02,1.0]
[1739145664648,23.79263953,201.06,201.04,1.0]
[1739145664869,3.9785,201.08,201.06,1.0]
[1739145664870,23.79263953,201.08,201.06,1.0]
[1739145665081,23.79263953,201.09,201.06,1.0]
[1739145665661,23.28220948,201.1,201.08,1.0]
[1739145666067,47.07484901,201.1,201.08,1.0]
[1739145668168,47.07484901,201.1,201.06,1.0]
[1739145668373,23.79263953,201.08,201.06,1.0]
[1739145669266,23.79263953,201.08,201.04,1.0]
[1739145669470,23.79263953,201.06,201.04,1.0]
[1739145670170,23.79263953,201.08,201.04,1.0]
[1739145670365,47.07484901,201.1,201.09,1.0]
[1739145670568,47.07484901,201.1,201.07,1.0]
[1739145670750,23.79263953,201.09,201.05,1.0]
[1739145670951,23.79263953,201.07,201.05,1.0]
[1739145671365,23.79263953,201.06,201.05,1.0]
[1739145671553,23.79263953,201.07,201.05,1.0]
[1739145671861,47.07484901,201.1,201.09,1.0]
[1739145672168,23.28220948,201.1,201.09,1.0]
[1739145672751,0.03,201.12,201.11,1.0]
[1739145673171,0.03,201.12,201.11,24.79263953]
[1739145673474,0.188,201.18,201.17,1.0]
[1739145674249,0.03,201.22,201.21,2.0]
[1739145674575,23.79263953,201.36,201.28,1.0]
[1739145674872,23.79263953,201.36,201.28,24.79263953]
[1739145675054,23.79263953,201.34,201.28,1.0]
[1739145675262,23.79263953,201.36,201.28,24.79263953]
[1739145675476,23.79263953,201.33,201.28,1.0]
[1739145675850,23.79263953,201.35,201.28,1.0]
[1739145676178,23.79263953,201.32,201.28,1.0]
[1739145676353,23.79263953,201.35,201.28,1.0]
[1739145676703,31.58351564,201.38,201.28,24.79263953]
[1739145677047,7.79087611,201.38,201.37,1.0]
[1739145677648,7.79087611,201.38,201.37,24.79263953]
[1739145677851,23.79263953,201.45,201.43,1.0]
[1739145678060,23.79263953,201.45,201.44,1.0]
[1739145678582,23.79263953,201.45,201.42,1.0]
[1739145678877,23.79263953,201.43,201.4,1.0]
[1739145679085,3.9712,201.45,201.42,1.0]
[1739145679257,23.79263953,201.43,201.42,1.0]
[1739145679453,17.954157,201.5,201.49,1.0]
[1739145679657,7.79087611,201.62,201.49,1.0]
[1739145679658,7.79087611,201.62,201.58,1.0]
[1739145679873,7.79087611,201.62,201.61,1.0]
[1739145680563,7.79087611,201.62,201.61,2.0]
[1739145680766,15.58175222,201.64,201.63,16.66282853]
[1739145680965,15.58175222,201.64,201.63,24.79263953]
[1739145681361,23.79263953,201.72,201.63,24.79263953]
[1739145681555,38.39284084,201.72,201.66,1.0]
[1739145682376,38.39284084,201.77,201.76,1.0]
[1739145683261,109.0690122,201.79,201.78,1.0]
[1739145683784,147.46185304,201.79,201.76,1.0]
[1739145683981,38.39284084,201.77,201.76,1.0]
[1739145684206,38.39284084,201.77,201.76,0.5]
[1739145684563,56.81577378,201.82,201.81,0.5]
[1739145686187,56.81577378,201.82,201.81,3.74491135]
[1739145686711,0.03,201.83,201.81,3.74491135]
[1739145686989,38.39284084,201.82,201.81,3.74491135]
[1739145687184,38.39284084,201.82,201.81,3.24491135]
[1739145687482,38.39284084,201.82,201.81,0.5]
[1739145687684,38.39284084,201.84,201.83,0.5]
[1739145687860,38.39284084,201.84,201.81,0.5]
[1739145688062,38.39284084,201.82,201.81,0.5]
[1739145688790,42.35674084,201.82,201.8,30.34887415]
[1739145688992,38.39284084,201.81,201.8,8.53177415]
[1739145689287,38.39284084,201.81,201.8,0.50007415]
[1739145689468,42.35674084,201.82,201.8,0.50007415]
[1739145689667,3.9639,201.82,201.8,0.50007415]
[1739145689879,38.39284084,201.81,201.8,0.50007415]
[1739145690470,3.9639,201.82,201.8,0.50007415]
[1739145690672,42.35674084,201.82,201.8,0.5]
[1739145690896,38.39284084,201.81,201.8,0.5]
[1739145691183,13.66282853,201.79,201.75,0.5]
[1739145691483,38.39284084,201.76,201.75,0.5]
[1739145691713,38.39284084,201.76,201.72,0.5]
[1739145691864,38.39284084,201.73,201.63,38.39284084]
[1739145692185,14.66282853,201.77,201.64,38.39284084]
[1739145692186,38.39284084,201.71,201.64,38.39284084]
[1739145692377,38.39284084,201.72,201.65,38.39284084]
[1739145692691,38.39284084,201.71,201.64,38.39284084]
[1739145692871,3.9662,201.7,201.64,38.39284084]
[1739145693075,38.39284084,201.68,201.61,38.39284084]
[1739145693295,38.39284084,201.67,201.59,92.07284084]
[1739145693477,38.39284084,201.66,201.59,53.68]
[1739145693671,38.39284084,201.66,201.58,38.39284084]
[1739145693672,38.39284084,201.61,201.54,42.49284084]
[1739145693986,38.39284084,201.59,201.52,38.39284084]
[1739145694200,38.39284084,201.56,201.49,38.39284084]
[1739145694362,1.0,201.64,201.46,6.5915]
[1739145694363,1.0,201.68,201.48,2.0]
[1739145694562,1.0,201.69,201.54,38.39284084]
[1739145694773,38.39284084,201.64,201.57,38.39284084]
[1739145695071,38.39284084,201.68,201.6,38.39284084]
[1739145695282,38.39284084,201.68,201.61,38.39284084]
[1739145695697,38.39284084,201.68,201.6,38.39284084]
[1739145695999,38.39284084,201.68,201.61,38.39284084]
[1739145696378,38.39284084,201.68,201.6,38.39284084]
[1739145696578,38.39284084,201.62,201.54,42.49284084]
[1739145696774,38.39284084,201.6,201.52,38.39284084]
[1739145696984,38.39284084,201.58,201.5,38.39284084]
[1739145697390,38.39284084,201.56,201.48,38.39284084]
[1739145697579,38.39284084,201.58,201.5,38.39284084]
[1739145697899,38.39284084,201.56,201.48,38.39284084]
[1739145698093,38.39284084,201.58,201.5,38.39284084]
[1739145698903,38.39284084,201.62,201.54,38.39284084]
[1739145699074,42.36094084,201.61,201.53,38.39284084]
[1739145699280,38.39284084,201.59,201.5,38.39284084]
[1739145699478,1.0,201.67,201.55,38.39284084]
[1739145699479,38.39284084,201.62,201.55,38.39284084]
[1739145699799,20.0,201.65,201.51,0.7442198]
[1739145700009,13.66282853,201.64,201.48,1.74412669]
[1739145700176,38.39284084,201.56,201.48,38.39284084]
[1739145700496,38.39284084,201.55,201.48,38.39284084]
[1739145700704,38.39284084,201.55,201.47,38.39284084]
[1739145700873,38.39284084,201.56,201.48,38.39284084]
[1739145701073,38.39284084,201.55,201.48,38.39284084]
[1739145701380,38.39284084,201.55,201.47,38.39284084]
[1739145701588,38.39284084,201.54,201.47,38.39284084]
[1739145701998,38.39284084,201.55,201.47,38.39284084]
[1739145702194,38.39284084,201.56,201.48,38.39284084]
[1739145702400,38.39284084,201.57,201.5,38.39284084]
[1739145702586,38.39284084,201.55,201.48,38.39284084]
[1739145703105,38.39284084,201.54,201.46,38.39284084]
[1739145703403,38.39284084,201.48,201.41,38.39284084]
[1739145703782,38.39284084,201.47,201.4,38.45584084]
[1739145703978,38.39284084,201.48,201.41,38.39284084]
[1739145704394,38.39284084,201.49,201.41,38.39284084]
[1739145704600,38.39284084,201.49,201.4,0.063]
[1739145704601,38.39284084,201.49,201.42,38.39284084]
[1739145704799,38.39284084,201.47,201.4,38.45584084]
[1739145705007,38.39284084,201.44,201.4,0.063]
[1739145705197,38.39284084,201.42,201.4,0.063]
[1739145705399,38.39284084,201.41,201.4,0.063]
[1739145706303,38.39284084,201.48,201.4,38.45584084]
[1739145706496,48.73554084,201.5,201.4,0.063]
[1739145706680,42.36304084,201.5,201.43,38.39284084]
[1739145706887,38.39284084,201.49,201.42,38.39284084]
[1739145707088,38.39284084,201.51,201.4,4.77975158]
[1739145707283,3.969,201.56,201.48,38.39284084]
[1739145707284,38.39284084,201.56,201.48,38.39284084]
[1739145707581,38.39284084,201.57,201.49,38.39284084]
[1739145707996,38.39284084,201.57,201.5,38.39284084]
[1739145708389,38.39284084,201.6,201.53,38.39284084]
[1739145708590,38.39284084,201.61,201.53,38.39284084]
[1739145709080,38.39284084,201.58,201.5,38.39284084]
[1739145709283,38.39284084,201.52,201.42,1.6306]
[1739145709488,38.39284084,201.52,201.45,38.39284084]
[1739145709687,38.39284084,201.54,201.47,38.39284084]
[1739145709892,38.39284084,201.53,201.46,38.39284084]
[1739145710106,38.39284084,201.54,201.47,38.39284084]
[1739145710307,38.39284084,201.57,201.49,38.39284084]
[1739145710600,38.39284084,201.61,201.53,38.39284084]
[1739145711010,38.39284084,201.59,201.52,38.39284084]
[1739145711686,38.39284084,201.59,201.52,42.36254084]
[1739145711901,38.39284084,201.59,201.52,38.39284084]
[1739145712484,38.39284084,201.59,201.52,42.36264084]
[1739145712806,38.39284084,201.59,201.52,38.39284084]
[1739145713103,38.39284084,201.61,201.54,38.39284084]
[1739145713305,38.39284084,201.61,201.52,38.39284084]
[1739145713707,38.39284084,201.61,201.52,42.36264084]
[1739145714414,38.39284084,201.67,201.58,38.39284084]
[1739145714616,38.39284084,201.69,201.6,38.39284084]
[1739145714992,38.39284084,201.67,201.6,38.39284084]
[1739145715309,38.39284084,201.73,201.66,38.39284084]
[1739145715816,38.39284084,201.71,201.63,38.39284084]
[1739145716310,38.42284084,201.76,201.69,38.39284084]
[1739145716608,0.03,201.76,201.69,38.39284084]
[1739145717010,38.39284084,201.73,201.65,38.39284084]
[1739145717307,38.29284084,201.71,201.63,38.39284084]
[1739145718041,0.03,201.76,201.68,38.39284084]
[1739145718334,0.03,201.76,201.75,38.39284084]
[1739145719134,0.03,201.76,201.69,44.95584084]
[1739145719426,38.42284084,201.76,201.67,38.39284084]
[1739145719629,0.03,201.76,201.69,38.39284084]
[1739145719824,0.03,201.76,201.73,38.39284084]
[1739145721131,38.42284084,201.76,201.67,38.39284084]
[1739145721304,38.39284084,201.74,201.67,38.39284084]
[1739145722048,38.39284084,201.74,201.66,3.967]
[1739145722049,38.39284084,201.7,201.63,38.39284084]
[1739145722327,3.9655,201.74,201.67,38.39284084]
[1739145722328,38.39284084,201.74,201.67,38.39284084]
[1739145722510,38.39284084,201.74,201.65,38.39284084]
[1739145722714,38.39284084,201.74,201.67,38.39284084]
[1739145722928,0.03,201.76,201.73,38.39284084]
[1739145723526,38.42284084,201.76,201.69,38.39284084]
[1739145723726,38.39284084,201.74,201.67,38.39284084]
[1739145724039,38.39284084,201.72,201.65,38.39284084]
[1739145724253,0.03,201.76,201.69,38.39284084]
[1739145724426,0.03,201.76,201.71,38.39284084]
[1739145724740,0.03,201.76,201.69,38.39284084]
[1739145724937,0.03,201.76,201.67,38.39284084]
[1739145724938,38.39284084,201.75,201.67,38.39284084]
[1739145725634,0.03,201.76,201.69,38.39284084]
[1739145726142,0.03,201.76,201.71,38.39284084]
[1739145726443,0.03,201.76,201.69,42.35924084]
[1739145726646,0.03,201.76,201.69,3.9664]
[1739145726942,38.39284084,201.75,201.67,3.9667]
[1739145727122,0.03,201.76,201.65,3.9671]
[1739145727123,38.39284084,201.73,201.65,3.9671]
[1739145727323,38.39284084,201.69,201.62,3.9677]
[1739145727522,38.39284084,201.71,201.63,38.39284084]
[1739145727920,38.39284084,201.71,201.64,3.9674]
[1739145728320,42.35814084,201.75,201.67,38.39284084]
[1739145728521,0.03,201.76,201.73,38.39284084]
[1739145729122,0.03,201.76,201.71,38.39284084]
[1739145729649,38.39284084,201.75,201.67,38.39284084]
[1739145730031,38.39284084,201.75,201.68,3.9666]
[1739145730233,38.39284084,201.71,201.63,38.39284084]
[1739145730624,3.9653,201.75,201.62,3.9678]
[1739145730625,38.39284084,201.69,201.62,3.9678]
[1739145730943,3.9653,201.75,201.59,9.9206]
[1739145730944,38.39284084,201.67,201.59,38.39284084]
[1739145731249,38.39284084,201.65,201.58,3.9686]
[1739145731837,38.39284084,201.7,201.62,38.39284084]
[1739145732045,38.39284084,201.68,201.62,3.9678]
[1739145732351,38.39284084,201.7,201.63,38.39284084]
[1739145732556,38.39284084,201.72,201.64,38.39284084]
[1739145732847,38.39284084,201.72,201.62,3.9678]
[1739145732848,38.39284084,201.7,201.63,38.39284084]
[1739145733149,13.66282853,201.73,201.54,0.74386439]
[1739145733337,13.53733853,201.71,201.55,3.9692]
[1739145733543,13.53733853,201.71,201.51,5.8537]
[1739145733544,0.12549,201.67,201.54,3.9693]
[1739145733728,13.53733853,201.65,201.48,1.0]
[1739145733925,13.41184853,201.63,201.48,1.0]
[1739145734250,38.39284084,201.62,201.54,38.39284084]
[1739145734437,38.39284084,201.6,201.53,57.5896]
[1739145734636,38.39284084,201.57,201.53,53.62]
[1739145734834,38.39284084,201.56,201.53,53.62]
[1739145735150,38.39284084,201.56,201.5,3.97]
[1739145735323,1.0,201.66,201.5,3.97]
[1739145735324,38.39284084,201.62,201.55,38.39284084]
[1739145735529,13.66282853,201.68,201.5,14.8955]
[1739145735743,15.53733853,201.65,201.5,3.97]
[1739145736046,0.12549,201.64,201.46,9.9273]
[1739145736349,15.53733853,201.65,201.44,3.9714]
[1739145736350,20.0,201.55,201.44,3.9714]
[1739145736525,1.12549,201.54,201.43,0.063]
[1739145736720,38.39284084,201.44,201.43,0.063]
[1739145737141,51.80468937,201.44,201.43,0.063]
[1739145737624,96.78568168,201.41,201.4,0.063]
[1739145737825,38.39284084,201.41,201.4,0.063]
[1739145738037,38.39284084,201.43,201.4,0.063]
[1739145738348,20.0,201.47,201.4,0.063]
[1739145738530,38.39284084,201.41,201.4,0.063]
[1739145738935,91.44851021,201.41,201.4,0.063]
[1739145739243,91.19753021,201.41,201.4,0.063]
[1739145739433,38.39284084,201.32,201.28,0.063]
[1739145739631,20.0,201.38,201.28,0.063]
[1739145739632,38.39284084,201.3,201.28,0.063]
[1739145739946,20.12549,201.38,201.28,0.063]
[1739145739947,38.39284084,201.29,201.28,0.063]
[1739145740140,38.39284084,201.32,201.28,0.063]
[1739145740454,38.39284084,201.33,201.28,0.063]
[1739145741345,38.39284084,201.32,201.28,0.063]
[1739145741867,38.39284084,201.34,201.28,0.063]
[1739145742042,38.39284084,201.36,201.29,38.39284084]
[1739145742361,38.39284084,201.38,201.3,42.36694084]
[1739145742564,16.033,201.46,201.32,38.39284084]
[1739145742565,38.39284084,201.39,201.32,38.39284084]
[1739145742860,6.1054,201.46,201.34,38.39284084]
[1739145742861,38.39284084,201.42,201.34,38.39284084]
[1739145743031,38.39284084,201.41,201.33,38.39284084]
[1739145743236,38.39284084,201.37,201.3,3.9741]
[1739145743432,38.39284084,201.31,201.28,0.063]
[1739145743633,38.39284084,201.29,201.28,0.063]
[1739145745149,51.80468937,201.29,201.28,0.063]
[1739145745535,38.39284084,201.31,201.28,0.063]
[1739145746745,38.39284084,201.29,201.28,0.063]
[1739145747643,51.80468937,201.29,201.28,0.063]
[1739145747964,53.05566937,201.29,201.28,0.063]
[1739145748146,53.05566937,201.29,201.28,0.0001]
[1739145748463,53.05566937,201.29,201.22,0.063]
[1739145748464,33.41184853,201.23,201.22,0.063]
[1739145748775,38.39284084,201.26,201.22,0.063]
[1739145749058,38.39284084,201.24,201.22,0.063]
[1739145749468,38.39284084,201.25,201.22,0.063]
[1739145749764,13.41184853,201.25,201.22,0.063]
[1739145750070,38.39284084,201.24,201.22,0.063]
[1739145750762,38.39284084,201.26,201.22,0.063]
[1739145751064,38.39284084,201.28,201.22,0.063]
[1739145751556,13.41184853,201.26,201.22,0.063]
[1739145751758,3.9731,201.36,201.23,38.39284084]
[1739145751933,38.39284084,201.32,201.25,38.39284084]
[1739145752137,38.39284084,201.28,201.22,4.0387]
[1739145752339,38.39284084,201.26,201.22,0.063]
[1739145752556,38.39284084,201.24,201.22,0.063]
[1739145753845,13.66282853,201.23,201.22,0.063]
[1739145754049,52.05566937,201.23,201.22,0.063]
[1739145754871,0.12549,201.15,201.07,0.063]
[1739145755165,38.39284084,201.08,201.07,0.063]
[1739145755556,51.80468937,201.08,201.07,0.063]
[1739145755752,38.39284084,201.08,201.07,0.063]
[1739145756178,51.80468937,201.08,201.07,0.063]
[1739145756361,51.93017937,201.08,201.07,0.063]
[1739145756670,52.05566937,201.08,201.07,0.063]
[1739145757178,51.80468937,201.08,201.07,0.063]
[1739145757670,38.39284084,201.13,201.07,0.063]
[1739145757881,39.39284084,201.2,201.07,42.43454084]
[1739145757882,38.39284084,201.14,201.07,42.43454084]
[1739145758047,38.39284084,201.08,201.07,0.063]
[1739145758451,38.39284084,201.12,201.07,0.063]
[1739145758682,38.39284084,201.09,201.07,0.063]
[1739145758888,51.93017937,201.08,201.07,0.063]
[1739145759175,52.05566937,201.08,201.07,0.063]
[1739145759577,51.80468937,201.08,201.07,0.063]
[1739145759876,38.39284084,201.08,201.07,0.063]
[1739145760080,51.80468937,201.08,201.07,0.063]
[1739145760589,51.93017937,201.08,201.07,0.063]
[1739145761491,51.80468937,201.08,201.07,0.063]
[1739145761800,38.39284084,201.14,201.07,0.063]
[1739145762076,38.39284084,201.14,201.07,4.0417]
[1739145762283,38.39284084,201.14,201.08,38.39284084]
[1739145762580,13.41184853,201.13,201.07,4.0417]
[1739145762780,38.39284084,201.1,201.07,0.063]
[1739145763680,38.39284084,201.08,201.07,0.063]
[1739145764061,13.41184853,201.11,201.07,0.063]
[1739145764062,38.39284084,201.1,201.07,0.063]
[1739145764565,38.39284084,201.14,201.07,0.063]
[1739145764969,38.39284084,201.16,201.08,38.39284084]
[1739145765166,38.39284084,201.22,201.14,38.39284084]
[1739145765378,38.39284084,201.24,201.16,38.39284084]
[1739145765963,23.34953973,201.34,201.11,0.74553021]
[1739145765964,38.39284084,201.28,201.2,38.39284084]
[1739145766160,38.39284084,201.32,201.22,38.39284084]
[1739145766361,38.39284084,201.32,201.24,38.39284084]
[1739145766893,13.41184853,201.31,201.24,38.39284084]
[1739145767076,38.39284084,201.32,201.24,38.39284084]
[1739145767380,10.058,201.36,201.28,38.39284084]
[1739145767381,38.39284084,201.36,201.28,38.39284084]
[1739145767592,38.39284084,201.38,201.3,38.39284084]
[1739145767979,38.39284084,201.43,201.35,38.39284084]
[1739145768301,38.39284084,201.39,201.31,38.39284084]
[1739145768784,0.03,201.32,201.31,38.39284084]
[1739145769292,0.03,201.44,201.31,38.39284084]
[1739145769456,38.39284084,201.43,201.34,38.39284084]
[1739145769785,38.39284084,201.41,201.34,38.39284084]
[1739145769982,38.39284084,201.39,201.29,0.74485932]
[1739145770283,38.39284084,201.39,201.3,38.39284084]
[1739145771078,38.39284084,201.41,201.34,38.39284084]
[1739145771564,0.03,201.44,201.36,38.39284084]
[1739145771565,38.39284084,201.43,201.36,38.39284084]
[1739145771766,38.39284084,201.43,201.3,38.39284084]
[1739145771767,0.03,201.44,201.38,38.39284084]
[1739145772191,0.03,201.44,201.32,1.0]
[1739145772192,0.03,201.44,201.36,38.39284084]
[1739145772385,38.39284084,201.41,201.34,42.36614084]
[1739145772585,38.39284084,201.43,201.34,42.36614084]
[1739145773095,38.39284084,201.41,201.32,42.36644084]